Workbook

Sheet Cars
B1: Two Car Related Rate Problem
B3: This DIGMath module lets you investigate
B4: the related rates calculus problem of finding
B5: the rate ds/dt at which the distance s between
B6: two cars approaching an intersection
B7: at different speeds changes.
A10: How fast, dx/dt, is the east-bound car going (20-60 mph)?
D11: 3 | E11: =#REF!+D11*(#REF!-#REF!)/100 ->  | F11: =5*D11 -> 15 | G11: mph
A13: How fast, dy/dt, is the north-bound car going (20-60 mph)?
D14: 5 | E14: =#REF!+D14*(#REF!-#REF!)/100 ->  | F14: =5*D14 -> 25 | G14: mph
A16: How far is the east-bound car from the intersection (0.5 - 10 miles)?
D17: 10 | E17: =#REF!+D17*(#REF!-#REF!)/100 ->  | F17: =D17/2 -> 5 | G17: miles
A19: How far is the north-bound car from the intersection (0.5 - 10 miles)?
D20: 10 | E20: =#REF!+D20*(#REF!-#REF!)/100 ->  | F20: =D20/2 -> 5 | G20: miles
A23: Click each item below for suggestions and investigations | L23: Select the time t since the start: t = | P23: =O24/2 -> 8.5 | Q23: minutes
C24: Item 1 | O24: 17 | P24: =Sheet2!#REF!+O24*(Sheet2!#REF!-Sheet2!#REF!)/100 -> 
C25: Item 2
C26: Item 3 | M26: The east-bound car is | O26: =LOOKUP(t00+0.01,Sheet2!B3:B123,Sheet2!C3:C123) -> 2.875 | P26: miles from the intersection
C27: Item 4 | N27: traveling at | O27: =Area -> 15 | P27: mph
M29: The north-bound car is | O29: =LOOKUP(t00+0.01,Sheet2!B6:B123,Sheet2!D6:D123) -> 1.458333333 | P29: miles from the intersection
N30: traveling at | O30: =H -> 25 | P30: mph
A31: To access/download all the DIGMath Apps for Calculus
A32: Click this link: | C32: DIGMath for Calculus | M32: The distance between them is | P32: =LOOKUP(t00,Sheet2!B3:B123,Sheet2!E3:E123) -> 3.22 | Q32: miles.
A34: Created by: Sheldon P. Gordon | J34: The distance between them is decreasing at a rate of | Q34: =-LOOKUP(t00,Sheet2!B3:B123, Sheet2!F3:F123) -> 0.4103970653 | R34: miles per hour
A35: Farmingdale State College
A36: Development of this module was supported by the
A37: NSF's Division of Undergraduate Education
A38: under grants DUE-0310123 and DUE-0442160.

Sheet Sheet2
B1: t | C1: x | D1: y | E1: Distance s | F1: ds/dt | I1: East car | J1: =-xx -> -5 | K1: 0 | O1: Horizontal car
I2: North Car | J2: 0 | K2: =-yy -> -5 | O2: rate = | P2: =Area -> 15 | Q2: =P2/120 -> 0.125
A3: 0 | B3: =0 -> 0.00 | C3: =xx -> 5.0 | D3: =yy -> 5 | E3: =SQRT(C3^2+D3^2) -> 7.07 | F3: =(E4-E3)/dt -> -0.471
A4: 1 | B4: =B3+dt -> 0.10 | C4: =IF(B4<=time,C3-Area/60*dt,0) -> 5.0 | D4: =D3-H/60*dt -> 4.96 | E4: =SQRT(C4^2+D4^2) -> 7.02 | F4: -0.471 | I4: intersection | J4: 0 | K4: 0
A5: 2 | B5: 0.20 | C5: 5.0 | D5: 4.92 | E5: 6.98 | F5: -0.471 | J5: 0 | K5: 0 | O5: Vertical car
A6: 3 | B6: 0.30 | C6: 4.9 | D6: 4.88 | E6: 6.93 | F6: -0.471 | O6: rate = | P6: =rateNorth -> 25 | Q6: =P6/120 -> 0.2083333333
A7: 4 | B7: 0.40 | C7: 4.9 | D7: 4.83 | E7: 6.88 | F7: -0.470 | I7: East car | J7: =J1 -> -5 | K7: =K1 -> 0
A8: 5 | B8: 0.50 | C8: 4.9 | D8: 4.79 | E8: 6.84 | F8: -0.470 | I8: North car | J8: =J2 -> 0 | K8: =K2 -> -5
A9: 6 | B9: 0.60 | C9: 4.9 | D9: 4.75 | E9: 6.79 | F9: -0.470 | M9: Hor. car time | N9: =xx/Area -> 0.3333333333 | O9: hrs = | P9: =N9*60 -> 20 | Q9: min
A10: 7 | B10: 0.70 | C10: 4.8 | D10: 4.71 | E10: 6.74 | F10: -0.470 | M10: Vert car time | N10: =yy/H -> 0.2 | O10: hrs = | P10: =N10*60 -> 12 | Q10: min
A11: 8 | B11: 0.80 | C11: 4.8 | D11: 4.67 | E11: 6.69 | F11: -0.470 | I11: First Chart
A12: 9 | B12: 0.90 | C12: 4.8 | D12: 4.63 | E12: 6.65 | F12: -0.469 | I12: Vertical Line | M12: total time = | N12: =MIN(P9:P10) -> 12 | O12: mins
A13: 10 | B13: 1.00 | C13: 4.8 | D13: 4.58 | E13: 6.60 | F13: -0.469 | J13: =I17 -> 8.5 | K13: 0 | M13: dt = | N13: =time/120 -> 0.1
A14: 11 | B14: 1.10 | C14: 4.7 | D14: 4.54 | E14: 6.55 | F14: -0.469 | J14: =I17 -> 8.5 | K14: =K3 -> 0.00 | M14: dx = | N14: =-Area/120 -> -0.125 | P14: =H -> 25
A15: 12 | B15: 1.20 | C15: 4.7 | D15: 4.50 | E15: 6.51 | F15: -0.469 | M15: dy = | N15: =Area/120 -> 0.125
A16: 13 | B16: 1.30 | C16: 4.7 | D16: 4.46 | E16: 6.46 | F16: -0.468 | I16: Point
A17: 14 | B17: 1.40 | C17: 4.7 | D17: 4.42 | E17: 6.41 | F17: -0.468 | I17: =x0 -> 8.5 | J17: 0 | M17: Horiz speed = | N17: =Area -> 15 | O17: mph = | P17: =N17/120 -> 0.125 | Q17: miles/half minute
A18: 15 | B18: 1.50 | C18: 4.6 | D18: 4.38 | E18: 6.37 | F18: -0.468 | O18: =
A19: 16 | B19: 1.60 | C19: 4.6 | D19: 4.33 | E19: 6.32 | F19: -0.468 | J19: 0 | K19: =-Cars!$O$29 -> -1.458333333
A20: 17 | B20: 1.70 | C20: 4.6 | D20: 4.29 | E20: 6.27 | F20: -0.467 | J20: =-Cars!$O$26 -> -2.875 | K20: 0
A21: 18 | B21: 1.80 | C21: 4.5 | D21: 4.25 | E21: 6.23 | F21: -0.467
A22: 19 | B22: 1.90 | C22: 4.5 | D22: 4.21 | E22: 6.18 | F22: -0.467 | I22: Second Chart
A23: 20 | B23: 2.00 | C23: 4.5 | D23: 4.17 | E23: 6.13 | F23: -0.466 | I23: Vertical Line | M23: rate = | N23: =LOOKUP(t00, B3:B122,F3:F122) -> -0.4103970653
A24: 21 | B24: 2.10 | C24: 4.5 | D24: 4.12 | E24: 6.09 | F24: -0.466 | J24: =t00 -> 8.5 | K24: 0 | L24: 0
A25: 22 | B25: 2.20 | C25: 4.4 | D25: 4.08 | E25: 6.04 | F25: -0.466 | J25: =I38 -> 8.5 | K25: =LOOKUP(t00,B3:B123,C3:C1233) -> 2.875 | L25: =LOOKUP(t00,B3:B123,D3:D1233) -> 1.458333333
A26: 23 | B26: 2.30 | C26: 4.4 | D26: 4.04 | E26: 5.99 | F26: -0.465 | O26: =LOOKUP(t00,Sheet2!C3:C123,Sheet2!E3:E123) -> 2.0
A27: 24 | B27: 2.40 | C27: 4.4 | D27: 4.00 | E27: 5.95 | F27: -0.465 | I27: Third Chart
A28: 25 | B28: 2.50 | C28: 4.4 | D28: 3.96 | E28: 5.90 | F28: -0.465 | I28: Vertical Line
A29: 26 | B29: 2.60 | C29: 4.3 | D29: 3.92 | E29: 5.85 | F29: -0.464 | J29: =t00 -> 8.5 | K29: 0
A30: 27 | B30: 2.70 | C30: 4.3 | D30: 3.87 | E30: 5.81 | F30: -0.464 | J30: =J29 -> 8.5 | K30: =LOOKUP(t00,B3:B123,E3:E123) -> 3.223718522
A31: 28 | B31: 2.80 | C31: 4.3 | D31: 3.83 | E31: 5.76 | F31: -0.464
A32: 29 | B32: 2.90 | C32: 4.3 | D32: 3.79 | E32: 5.71 | F32: -0.463 | I32: Fourth Chart
A33: 30 | B33: 3.00 | C33: 4.2 | D33: 3.75 | E33: 5.67 | F33: -0.463 | I33: Vertical Line
A34: 31 | B34: 3.10 | C34: 4.2 | D34: 3.71 | E34: 5.62 | F34: -0.463 | J34: =LOOKUP(t00,B3:B123,B3:B122) -> 8.5 | K34: 0
A35: 32 | B35: 3.20 | C35: 4.2 | D35: 3.67 | E35: 5.58 | F35: -0.462 | J35: =J34 -> 8.5 | K35: =N23 -> -0.4103970653
A36: 33 | B36: =B35+dt -> 3.30 | C36: =IF(B36<=time,C35-Area/60*dt,0) -> 4.2 | D36: =D35-H/60*dt -> 3.62 | E36: 5.53 | F36: -0.462
A37: 34 | B37: 3.40 | C37: 4.1 | D37: 3.58 | E37: 5.48 | F37: -0.461 | I37: Point
A38: 35 | B38: 3.50 | C38: 4.1 | D38: 3.54 | E38: 5.44 | F38: -0.461 | I38: =x0 -> 8.5 | J38: 0
A39: 36 | B39: 3.60 | C39: 4.1 | D39: 3.50 | E39: 5.39 | F39: -0.460
A40: 37 | B40: 3.70 | C40: 4.1 | D40: 3.46 | E40: 5.34 | F40: -0.460 | I40: Point on curve
A41: 38 | B41: 3.80 | C41: 4.0 | D41: 3.42 | E41: 5.30 | F41: -0.460 | I41: x= | J41: =I17*J11 -> 0
A42: 39 | B42: 3.90 | C42: 4.0 | D42: 3.38 | E42: 5.25 | F42: -0.459 | I42: =x0 -> 8.5 | J42: =LOOKUP(x0,C3:C84,D3:D84) -> 1.625
A43: 40 | B43: 4.00 | C43: 4.0 | D43: 3.33 | E43: 5.21 | F43: -0.459
A44: 41 | B44: 4.10 | C44: 4.0 | D44: 3.29 | E44: 5.16 | F44: -0.458
A45: 42 | B45: 4.20 | C45: 3.9 | D45: 3.25 | E45: 5.12 | F45: -0.458
A46: 43 | B46: 4.30 | C46: 3.9 | D46: 3.21 | E46: 5.07 | F46: -0.457
A47: 44 | B47: 4.40 | C47: 3.9 | D47: 3.17 | E47: 5.02 | F47: -0.456
A48: 45 | B48: 4.50 | C48: 3.9 | D48: 3.13 | E48: 4.98 | F48: -0.456
A49: 46 | B49: 4.60 | C49: 3.8 | D49: 3.08 | E49: 4.93 | F49: -0.455
A50: 47 | B50: 4.70 | C50: 3.8 | D50: 3.04 | E50: 4.89 | F50: -0.455
A51: 48 | B51: 4.80 | C51: 3.8 | D51: 3.00 | E51: 4.84 | F51: -0.454
A52: 49 | B52: 4.90 | C52: 3.8 | D52: 2.96 | E52: 4.80 | F52: -0.453
A53: 50 | B53: 5.00 | C53: 3.7 | D53: 2.92 | E53: 4.75 | F53: -0.453
A54: 51 | B54: 5.10 | C54: 3.7 | D54: 2.88 | E54: 4.71 | F54: -0.452
A55: 52 | B55: 5.20 | C55: 3.7 | D55: 2.83 | E55: 4.66 | F55: -0.451
A56: 53 | B56: 5.30 | C56: 3.7 | D56: 2.79 | E56: 4.62 | F56: -0.451
A57: 54 | B57: 5.40 | C57: 3.6 | D57: 2.75 | E57: 4.57 | F57: -0.450
A58: 55 | B58: 5.50 | C58: 3.6 | D58: 2.71 | E58: 4.53 | F58: -0.449
A59: 56 | B59: 5.60 | C59: 3.6 | D59: 2.67 | E59: 4.48 | F59: -0.449
A60: 57 | B60: 5.70 | C60: 3.6 | D60: 2.63 | E60: 4.44 | F60: -0.448
A61: 58 | B61: 5.80 | C61: 3.5 | D61: 2.58 | E61: 4.39 | F61: -0.447
A62: 59 | B62: 5.90 | C62: 3.5 | D62: 2.54 | E62: 4.35 | F62: -0.446
A63: 60 | B63: 6.00 | C63: 3.5 | D63: 2.50 | E63: 4.30 | F63: -0.445
A64: 61 | B64: 6.10 | C64: 3.5 | D64: 2.46 | E64: 4.26 | F64: -0.444
A65: 62 | B65: 6.20 | C65: 3.4 | D65: 2.42 | E65: 4.21 | F65: -0.443
A66: 63 | B66: 6.30 | C66: 3.4 | D66: 2.38 | E66: 4.17 | F66: -0.442
A67: 64 | B67: 6.40 | C67: 3.4 | D67: 2.33 | E67: 4.12 | F67: =(E68-E67)/dt -> -0.441
A68: 65 | B68: =B67+dt -> 6.50 | C68: =IF(B68<=time,C67-Area/60*dt,0) -> 3.4 | D68: =D67-H/60*dt -> 2.29 | E68: =SQRT(C68^2+D68^2) -> 4.08 | F68: -0.440
A69: 66 | B69: 6.60 | C69: 3.3 | D69: 2.25 | E69: 4.04 | F69: -0.439
A70: 67 | B70: 6.70 | C70: 3.3 | D70: 2.21 | E70: 3.99 | F70: -0.438
A71: 68 | B71: 6.80 | C71: 3.3 | D71: 2.17 | E71: 3.95 | F71: -0.437
A72: 69 | B72: 6.90 | C72: 3.3 | D72: 2.13 | E72: 3.90 | F72: -0.436
A73: 70 | B73: 7.00 | C73: 3.2 | D73: 2.08 | E73: 3.86 | F73: -0.435
A74: 71 | B74: 7.10 | C74: 3.2 | D74: 2.04 | E74: 3.82 | F74: -0.433
A75: 72 | B75: 7.20 | C75: 3.2 | D75: 2.00 | E75: 3.77 | F75: -0.432
A76: 73 | B76: 7.30 | C76: 3.2 | D76: 1.96 | E76: 3.73 | F76: -0.431
A77: 74 | B77: 7.40 | C77: 3.1 | D77: 1.92 | E77: 3.69 | F77: -0.429
A78: 75 | B78: 7.50 | C78: 3.1 | D78: 1.88 | E78: 3.64 | F78: -0.428
A79: 76 | B79: 7.60 | C79: 3.1 | D79: 1.83 | E79: 3.60 | F79: -0.427
A80: 77 | B80: 7.70 | C80: 3.1 | D80: 1.79 | E80: 3.56 | F80: -0.425
A81: 78 | B81: 7.80 | C81: 3.0 | D81: 1.75 | E81: 3.52 | F81: -0.423
A82: 79 | B82: 7.90 | C82: 3.0 | D82: 1.71 | E82: 3.47 | F82: -0.422
A83: 80 | B83: 8.00 | C83: 3.0 | D83: 1.67 | E83: 3.43 | F83: -0.420
A84: 81 | B84: 8.10 | C84: 3.0 | D84: 1.63 | E84: 3.39 | F84: -0.418
A85: 82 | B85: 8.20 | C85: 2.9 | D85: 1.58 | E85: 3.35 | F85: -0.416
A86: 83 | B86: 8.30 | C86: 2.9 | D86: 1.54 | E86: 3.31 | F86: -0.414
A87: 84 | B87: 8.40 | C87: 2.9 | D87: 1.50 | E87: 3.26 | F87: -0.412
A88: 85 | B88: 8.50 | C88: 2.9 | D88: 1.46 | E88: 3.22 | F88: -0.410
A89: 86 | B89: 8.60 | C89: 2.8 | D89: 1.42 | E89: 3.18 | F89: -0.408
A90: 87 | B90: 8.70 | C90: 2.8 | D90: 1.38 | E90: 3.14 | F90: -0.406
A91: 88 | B91: 8.80 | C91: 2.8 | D91: 1.33 | E91: 3.10 | F91: -0.404
A92: 89 | B92: 8.90 | C92: 2.8 | D92: 1.29 | E92: 3.06 | F92: -0.401
A93: 90 | B93: 9.00 | C93: 2.7 | D93: 1.25 | E93: 3.02 | F93: -0.399
A94: 91 | B94: 9.10 | C94: 2.7 | D94: 1.21 | E94: 2.98 | F94: -0.396
A95: 92 | B95: 9.20 | C95: 2.7 | D95: 1.17 | E95: 2.94 | F95: -0.393
A96: 93 | B96: 9.30 | C96: 2.7 | D96: 1.13 | E96: 2.90 | F96: -0.391
A97: 94 | B97: 9.40 | C97: 2.6 | D97: 1.08 | E97: 2.86 | F97: -0.388
A98: 95 | B98: 9.50 | C98: 2.6 | D98: 1.04 | E98: 2.82 | F98: -0.384
A99: 96 | B99: 9.60 | C99: 2.6 | D99: 1.00 | E99: 2.79 | F99: -0.381
A100: 97 | B100: =B99+dt -> 9.70 | C100: =IF(B100<=time,C99-Area/60*dt,0) -> 2.6 | D100: =D99-H/60*dt -> 0.96 | E100: 2.75 | F100: -0.378
A101: 98 | B101: 9.80 | C101: 2.5 | D101: 0.92 | E101: 2.71 | F101: -0.374
A102: 99 | B102: 9.90 | C102: 2.5 | D102: 0.87 | E102: 2.67 | F102: -0.371
A103: 100 | B103: 10.00 | C103: 2.5 | D103: 0.83 | E103: 2.64 | F103: -0.367
A104: 101 | B104: 10.10 | C104: 2.5 | D104: 0.79 | E104: 2.60 | F104: -0.363
A105: 102 | B105: 10.20 | C105: 2.4 | D105: 0.75 | E105: 2.56 | F105: -0.359
A106: 103 | B106: 10.30 | C106: 2.4 | D106: 0.71 | E106: 2.53 | F106: -0.355
A107: 104 | B107: 10.40 | C107: 2.4 | D107: 0.67 | E107: 2.49 | F107: -0.350
A108: 105 | B108: 10.50 | C108: 2.4 | D108: 0.62 | E108: 2.46 | F108: -0.345
A109: 106 | B109: 10.60 | C109: 2.3 | D109: 0.58 | E109: 2.42 | F109: -0.341
A110: 107 | B110: 10.70 | C110: 2.3 | D110: 0.54 | E110: 2.39 | F110: -0.335
A111: 108 | B111: 10.80 | C111: 2.3 | D111: 0.50 | E111: 2.35 | F111: -0.330
A112: 109 | B112: 10.90 | C112: 2.3 | D112: 0.46 | E112: 2.32 | F112: -0.325
A113: 110 | B113: 11.00 | C113: 2.2 | D113: 0.42 | E113: 2.29 | F113: -0.319
A114: 111 | B114: 11.10 | C114: 2.2 | D114: 0.37 | E114: 2.26 | F114: -0.313
A115: 112 | B115: 11.20 | C115: 2.2 | D115: 0.33 | E115: 2.23 | F115: -0.306
A116: 113 | B116: 11.30 | C116: 2.2 | D116: 0.29 | E116: 2.19 | F116: -0.300
A117: 114 | B117: 11.40 | C117: 2.1 | D117: 0.25 | E117: 2.16 | F117: -0.293
A118: 115 | B118: 11.50 | C118: 2.1 | D118: 0.21 | E118: 2.14 | F118: -0.286
A119: 116 | B119: 11.60 | C119: 2.1 | D119: 0.17 | E119: 2.11 | F119: -0.278
A120: 117 | B120: 11.70 | C120: 2.1 | D120: 0.12 | E120: 2.08 | F120: -0.271
A121: 118 | B121: 11.80 | C121: 2.0 | D121: 0.08 | E121: 2.05 | F121: -0.263
A122: 119 | B122: 11.90 | C122: 2.0 | D122: 0.04 | E122: 2.03 | F122: -0.254
A123: 120 | B123: 12.00 | C123: 2.0 | D123: -0.00 | E123: 2.00
D288: =
D289: =
D290: =
D291: =
D292: =
D293: =
D294: =
D295: =
D296: =
D297: =
D298: =
D299: =
D300: =
D301: =
D302: =
D303: =
D304: =
D305: =
D306: =
D307: =
D308: =
D309: =
D310: =
D311: =
D312: =
D313: =
D314: =
D315: =
D316: =
D317: =
D318: =
D319: =
D320: =
D321: =
D322: =
D323: =
D324: =
D325: =
D326: =
D327: =
D328: =
D329: =
D330: =
D331: =
D332: =
D333: =
D334: =
D335: =
D336: =
D337: =
D338: =
D339: =
D340: =
D341: =
D342: =
D343: =
D344: =
D345: =
D346: =
D347: =
D348: =
D349: =
D350: =
D351: =
D352: =
D353: =
D354: =
D355: =
D356: =
D357: =
D358: =
D359: =
D360: =
D361: =
D362: =
D363: =
D364: =
... 640 more rows

Sheet Sheet1
